[Event "*** Titled Tuesday Blitz"]
[Site "Chess.com"]
[Date "2021.03.02"]
[Round "7"]
[White "Ladislav1969"]
[Black "chescomhuynya"]
[Result "1-0"]
[WhiteElo "2315"]
[BlackElo "2554"]
[TimeControl "180+1"]
[EndTime "11:19:14 PST"]
[Termination "Ladislav1969 won on time"]

1. e4 {[%clk 0:03:00.9]} 1... c5 {[%clk 0:02:59.9]} 2. d4 {[%clk 0:03:00.8]}
2... cxd4 {[%clk 0:02:58.6]} 3. c3 {[%clk 0:03:01.7]} 3... d3 {[%clk 0:02:56.4]}
4. Bxd3 {[%clk 0:03:01]} 4... Nc6 {[%clk 0:02:54.6]} 5. c4 {[%clk 0:03:01.1]}
5... d6 {[%clk 0:02:54.1]} 6. Nc3 {[%clk 0:03:01.6]} 6... g6 {[%clk 0:02:54.8]}
7. f4 {[%clk 0:03:01.6]} 7... Bg7 {[%clk 0:02:55.7]} 8. Nf3 {[%clk 0:03:01.9]}
8... Nf6 {[%clk 0:02:55.7]} 9. h3 {[%clk 0:02:59.8]} 9... O-O {[%clk 0:02:55.6]}
10. Be3 {[%clk 0:03:00]} 10... Bd7 {[%clk 0:02:53.5]} 11. Rc1 {[%clk 0:02:57.4]}
11... Rc8 {[%clk 0:02:53.5]} 12. O-O {[%clk 0:02:48.5]} 12... Nb4 {[%clk
0:02:49.9]} 13. a3 {[%clk 0:02:44.7]} 13... Nxd3 {[%clk 0:02:50]} 14. Qxd3
{[%clk 0:02:44.9]} 14... a6 {[%clk 0:02:46.9]} 15. Bd4 {[%clk 0:02:34.8]} 15...
Be6 {[%clk 0:02:44.8]} 16. Nd5 {[%clk 0:02:29.3]} 16... Bxd5 {[%clk 0:02:44]}
17. cxd5 {[%clk 0:02:07]} 17... Qd7 {[%clk 0:02:36.5]} 18. Kh2 {[%clk
0:02:05.9]} 18... Rxc1 {[%clk 0:02:36.1]} 19. Rxc1 {[%clk 0:02:05.6]} 19... Rc8
{[%clk 0:02:37]} 20. Rxc8+ {[%clk 0:01:47.1]} 20... Qxc8 {[%clk 0:02:37.9]} 21.
Bc3 {[%clk 0:01:47]} 21... Qc5 {[%clk 0:02:33.4]} 22. Nd4 {[%clk 0:01:43.3]}
22... Nh5 {[%clk 0:02:19.4]} 23. g3 {[%clk 0:01:35.3]} 23... Nf6 {[%clk
0:02:19.3]} 24. b4 {[%clk 0:01:32.7]} 24... Qb6 {[%clk 0:02:07.9]} 25. Kg2
{[%clk 0:01:22.8]} 25... Qc7 {[%clk 0:02:00.4]} 26. Bd2 {[%clk 0:01:18.5]} 26...
Nd7 {[%clk 0:01:58.2]} 27. Be3 {[%clk 0:01:13]} 27... Nb6 {[%clk 0:01:53.2]} 28.
Qc2 {[%clk 0:01:00.9]} 28... Nc4 {[%clk 0:01:53.2]} 29. Kf2 {[%clk 0:00:42.1]}
29... Bxd4 {[%clk 0:01:47.3]} 30. Bxd4 {[%clk 0:00:41.7]} 30... b5 {[%clk
0:01:47.4]} 31. Qc3 {[%clk 0:00:30.5]} 31... Qd7 {[%clk 0:01:46.7]} 32. g4
{[%clk 0:00:28]} 32... f6 {[%clk 0:01:46]} 33. Kf3 {[%clk 0:00:27.6]} 33... Kf7
{[%clk 0:01:45.9]} 34. h4 {[%clk 0:00:27.9]} 34... h5 {[%clk 0:01:44.5]} 35. f5
{[%clk 0:00:26.3]} 35... hxg4+ {[%clk 0:01:44.5]} 36. Kxg4 {[%clk 0:00:26.4]}
36... gxf5+ {[%clk 0:01:45]} 37. exf5 {[%clk 0:00:26.7]} 37... Qc8 {[%clk
0:01:45.5]} 38. Kf4 {[%clk 0:00:24.6]} 38... Qh8 {[%clk 0:01:39.2]} 39. Qe1
{[%clk 0:00:24.4]} 39... Qh6+ {[%clk 0:01:37.8]} 40. Kf3 {[%clk 0:00:21.4]}
40... Nd2+ {[%clk 0:01:29.3]} 41. Kg4 {[%clk 0:00:20.6]} 41... Qg7+ {[%clk
0:01:22]} 42. Kf4 {[%clk 0:00:18.6]} 42... Qg2 {[%clk 0:01:10.3]} 43. Qe6+
{[%clk 0:00:16.6]} 43... Kf8 {[%clk 0:01:10.8]} 44. Bxf6 {[%clk 0:00:12.9]}
44... Qf3+ {[%clk 0:01:05.5]} 45. Kg5 {[%clk 0:00:12.7]} 45... Ne4+ {[%clk
0:01:05.9]} 46. Kg6 {[%clk 0:00:08]} 46... Qg4+ {[%clk 0:00:07.2]} 47. Bg5
{[%clk 0:00:07.9]} 47... Nxg5 {[%clk 0:00:06.3]} 48. hxg5 {[%clk 0:00:07.9]} 1-0

[Event "*** Titled Tuesday Blitz"]
[Site "Chess.com"]
[Date "2021.03.02"]
[Round "7"]
[White "Chowman64"]
[Black "verdest"]
[Result "1/2-1/2"]
[WhiteElo "2722"]
[BlackElo "2502"]
[TimeControl "180+1"]
[EndTime "11:19:15 PST"]
[Termination "Game drawn - insufficient material"]

1. Nf3 {[%clk 0:03:00.9]} 1... d5 {[%clk 0:02:59.5]} 2. d4 {[%clk 0:02:59]} 2...
c6 {[%clk 0:02:59.3]} 3. c4 {[%clk 0:02:57.8]} 3... Nf6 {[%clk 0:02:59.4]} 4.
Nbd2 {[%clk 0:02:47.7]} 4... Bf5 {[%clk 0:02:57.8]} 5. Nh4 {[%clk 0:02:42.1]}
5... Bg4 {[%clk 0:02:54]} 6. h3 {[%clk 0:02:39.5]} 6... Bh5 {[%clk 0:02:53.6]}
7. g4 {[%clk 0:02:29.6]} 7... Bg6 {[%clk 0:02:53]} 8. Qb3 {[%clk 0:02:22.2]}
8... Qb6 {[%clk 0:02:50.7]} 9. Nxg6 {[%clk 0:02:03.8]} 9... hxg6 {[%clk
0:02:49.8]} 10. Bg2 {[%clk 0:02:03.7]} 10... e6 {[%clk 0:02:48.8]} 11. g5 {[%clk
0:01:56.8]} 11... Nfd7 {[%clk 0:02:38.3]} 12. e4 {[%clk 0:01:54.2]} 12... dxe4
{[%clk 0:02:33.1]} 13. Nxe4 {[%clk 0:01:52.8]} 13... Be7 {[%clk 0:02:31.3]} 14.
Be3 {[%clk 0:01:46.9]} 14... Na6 {[%clk 0:02:28]} 15. O-O {[%clk 0:01:40.2]}
15... Qxb3 {[%clk 0:02:24]} 16. axb3 {[%clk 0:01:39.7]} 16... Nb4 {[%clk
0:02:24.5]} 17. Rad1 {[%clk 0:01:34.8]} 17... O-O {[%clk 0:02:22.6]} 18. Nc3
{[%clk 0:01:31.2]} 18... Nb6 {[%clk 0:02:18.8]} 19. h4 {[%clk 0:01:26.5]} 19...
Rfd8 {[%clk 0:02:17.7]} 20. Bf3 {[%clk 0:01:25.1]} 20... Nc2 {[%clk 0:02:08.6]}
21. Rd2 {[%clk 0:01:21.6]} 21... Nxe3 {[%clk 0:02:07.6]} 22. fxe3 {[%clk
0:01:21.4]} 22... Rd7 {[%clk 0:02:04.9]} 23. c5 {[%clk 0:01:16]} 23... Nd5
{[%clk 0:02:03.4]} 24. Nxd5 {[%clk 0:01:15.3]} 24... cxd5 {[%clk 0:01:56]} 25.
b4 {[%clk 0:01:13]} 25... b6 {[%clk 0:01:49.5]} 26. Ra1 {[%clk 0:00:57.7]} 26...
Rc8 {[%clk 0:01:39]} 27. Kf2 {[%clk 0:00:48.3]} 27... a5 {[%clk 0:01:38.3]} 28.
bxa5 {[%clk 0:00:43.7]} 28... bxc5 {[%clk 0:01:37.9]} 29. b3 {[%clk 0:00:39.1]}
29... cxd4 {[%clk 0:01:32.9]} 30. exd4 {[%clk 0:00:37.1]} 30... Bb4 {[%clk
0:01:33.3]} 31. Rda2 {[%clk 0:00:34.8]} 31... Bc3 {[%clk 0:01:28.6]} 32. Rd1
{[%clk 0:00:32.9]} 32... Ra7 {[%clk 0:01:25.7]} 33. a6 {[%clk 0:00:32.6]} 33...
Rb8 {[%clk 0:01:12.9]} 34. Rd3 {[%clk 0:00:32.1]} 34... Rxb3 {[%clk 0:01:11.1]}
35. Ke3 {[%clk 0:00:31.8]} 35... Rb2 {[%clk 0:01:05.3]} 36. Ra3 {[%clk
0:00:15.1]} 36... Bb4 {[%clk 0:00:49.5]} 37. Ra1 {[%clk 0:00:12.8]} 37... Rc2
{[%clk 0:00:44.2]} 38. Bd1 {[%clk 0:00:11.4]} 38... Rc6 {[%clk 0:00:42.2]} 39.
Rb3 {[%clk 0:00:10.5]} 39... Bc3 {[%clk 0:00:36.1]} 40. Raa3 {[%clk 0:00:08.7]}
40... Be1 {[%clk 0:00:28.1]} 41. Be2 {[%clk 0:00:08.5]} 41... f5 {[%clk
0:00:22.8]} 42. gxf6 {[%clk 0:00:07.9]} 42... gxf6 {[%clk 0:00:22.5]} 43. Rb7
{[%clk 0:00:06.6]} 43... Rxb7 {[%clk 0:00:17.1]} 44. axb7 {[%clk 0:00:06.4]}
44... Bg3 {[%clk 0:00:17.7]} 45. Ra8+ {[%clk 0:00:05.6]} 45... Kg7 {[%clk
0:00:18.1]} 46. b8=Q {[%clk 0:00:05.4]} 46... Bxb8 {[%clk 0:00:18.5]} 47. Rxb8
{[%clk 0:00:05.6]} 47... Rc3+ {[%clk 0:00:18.8]} 48. Kf2 {[%clk 0:00:04]} 48...
Rh3 {[%clk 0:00:18.6]} 49. Rb6 {[%clk 0:00:03.9]} 49... Rxh4 {[%clk 0:00:17.9]}
50. Rxe6 {[%clk 0:00:04]} 50... Rxd4 {[%clk 0:00:18]} 51. Ke3 {[%clk 0:00:04.5]}
51... Re4+ {[%clk 0:00:18.2]} 52. Rxe4 {[%clk 0:00:04.6]} 52... dxe4 {[%clk
0:00:19.1]} 53. Kxe4 {[%clk 0:00:04.8]} 53... f5+ {[%clk 0:00:20]} 54. Ke3
{[%clk 0:00:05.2]} 54... f4+ {[%clk 0:00:20.9]} 55. Kxf4 {[%clk 0:00:05.2]}
55... g5+ {[%clk 0:00:21.8]} 56. Kxg5 {[%clk 0:00:05.6]} 1/2-1/2

[Event "*** Titled Tuesday Blitz"]
[Site "Chess.com"]
[Date "2021.03.02"]
[Round "7"]
[White "kleopl"]
[Black "The_filthy"]
[Result "1-0"]
[WhiteElo "2487"]
[BlackElo "2340"]
[TimeControl "180+1"]
[EndTime "11:19:15 PST"]
[Termination "kleopl won on time"]

1. c4 {[%clk 0:03:00.9]} 1... c6 {[%clk 0:02:59.9]} 2. Nf3 {[%clk 0:03:00.3]}
2... Nf6 {[%clk 0:02:59.9]} 3. b3 {[%clk 0:02:58.5]} 3... d5 {[%clk 0:02:57.8]}
4. Bb2 {[%clk 0:02:58.7]} 4... g6 {[%clk 0:02:56.1]} 5. d3 {[%clk 0:02:57]} 5...
Bg7 {[%clk 0:02:56.3]} 6. Nbd2 {[%clk 0:02:56.5]} 6... O-O {[%clk 0:02:56.4]} 7.
Qc2 {[%clk 0:02:56.4]} 7... Bg4 {[%clk 0:02:53]} 8. h3 {[%clk 0:02:55.6]} 8...
Bxf3 {[%clk 0:02:53]} 9. Nxf3 {[%clk 0:02:56.5]} 9... e6 {[%clk 0:02:50.4]} 10.
e4 {[%clk 0:02:52.2]} 10... dxe4 {[%clk 0:02:42.5]} 11. dxe4 {[%clk 0:02:53.1]}
11... Nbd7 {[%clk 0:02:41.9]} 12. Rd1 {[%clk 0:02:43.6]} 12... Qc7 {[%clk
0:02:34.7]} 13. Be2 {[%clk 0:02:35.5]} 13... e5 {[%clk 0:02:27]} 14. O-O {[%clk
0:02:32.9]} 14... Nh5 {[%clk 0:02:25.7]} 15. g3 {[%clk 0:02:26]} 15... Rfd8
{[%clk 0:02:19.5]} 16. Ba3 {[%clk 0:02:20.4]} 16... Qb6 {[%clk 0:02:11.4]} 17.
Be7 {[%clk 0:02:13.2]} 17... Nxg3 {[%clk 0:02:04.2]} 18. Bxd8 {[%clk 0:02:09.9]}
18... Rxd8 {[%clk 0:02:02.7]} 19. Rfe1 {[%clk 0:02:05.6]} 19... Nh5 {[%clk
0:02:00.9]} 20. Ng5 {[%clk 0:01:50.1]} 20... Nf4 {[%clk 0:01:58.4]} 21. Bg4
{[%clk 0:01:48.2]} 21... Nf8 {[%clk 0:01:33.7]} 22. h4 {[%clk 0:01:36.3]} 22...
h6 {[%clk 0:01:27.5]} 23. Nh3 {[%clk 0:01:36]} 23... h5 {[%clk 0:01:18.9]} 24.
Nxf4 {[%clk 0:01:34.7]} 24... hxg4 {[%clk 0:01:17.5]} 25. Ng2 {[%clk 0:01:33.6]}
25... Ne6 {[%clk 0:01:10.6]} 26. Ne3 {[%clk 0:01:28.8]} 26... Nd4 {[%clk
0:01:05.3]} 27. Rxd4 {[%clk 0:01:14]} 27... exd4 {[%clk 0:01:03]} 28. Nxg4
{[%clk 0:01:13.8]} 28... d3 {[%clk 0:01:00]} 29. Qd2 {[%clk 0:01:12.5]} 29...
Qd4 {[%clk 0:00:54.8]} 30. Nh2 {[%clk 0:01:03.4]} 30... Qf6 {[%clk 0:00:40.2]}
31. Qg5 {[%clk 0:00:54.9]} 31... d2 {[%clk 0:00:27.5]} 32. Rd1 {[%clk
0:00:54.7]} 32... Qd4 {[%clk 0:00:26]} 33. Nf1 {[%clk 0:00:40.3]} 33... Bf6
{[%clk 0:00:15.9]} 34. Qg4 {[%clk 0:00:24.2]} 34... Qb2 {[%clk 0:00:15.7]} 35.
Qf4 {[%clk 0:00:15.9]} 35... Kg7 {[%clk 0:00:12]} 36. Rxd2 {[%clk 0:00:14.7]}
36... Qc1 {[%clk 0:00:08.9]} 37. Kg2 {[%clk 0:00:11.2]} 37... Re8 {[%clk
0:00:07.1]} 38. Qe3 {[%clk 0:00:07]} 38... Qa3 {[%clk 0:00:05.6]} 39. h5 {[%clk
0:00:06]} 39... Qe7 {[%clk 0:00:05.2]} 40. Ng3 {[%clk 0:00:04.3]} 40... Rh8
{[%clk 0:00:04.6]} 41. Qf3 {[%clk 0:00:03.6]} 41... Qe6 {[%clk 0:00:04.2]} 42.
hxg6 {[%clk 0:00:03.2]} 42... fxg6 {[%clk 0:00:04.5]} 43. Kf1 {[%clk 0:00:03.3]}
43... Be5 {[%clk 0:00:02.7]} 44. Ke2 {[%clk 0:00:02.9]} 44... Rf8 {[%clk
0:00:02.3]} 45. Qe3 {[%clk 0:00:02.3]} 45... Qg4+ {[%clk 0:00:02.6]} 46. Ke1
{[%clk 0:00:01.7]} 46... Bf4 {[%clk 0:00:03.1]} 47. Qd4+ {[%clk 0:00:01.1]}
47... Kh7 {[%clk 0:00:01.2]} 48. Rd3 {[%clk 0:00:02]} 1-0

[Event "*** Titled Tuesday Blitz"]
[Site "Chess.com"]
[Date "2021.03.02"]
[Round "7"]
[White "Ekose"]
[Black "A-S-00"]
[Result "1-0"]
[WhiteElo "2535"]
[BlackElo "2395"]
[TimeControl "180+1"]
[EndTime "11:19:16 PST"]
[Termination "Ekose won by resignation"]

1. d4 {[%clk 0:02:56.5]} 1... d5 {[%clk 0:02:57.8]} 2. Nf3 {[%clk 0:02:55.8]}
2... Nf6 {[%clk 0:02:57.5]} 3. e3 {[%clk 0:02:51.6]} 3... c5 {[%clk 0:02:55.6]}
4. c3 {[%clk 0:02:50.4]} 4... Nc6 {[%clk 0:02:54.8]} 5. Nbd2 {[%clk 0:02:49.3]}
5... Bg4 {[%clk 0:02:50]} 6. Bb5 {[%clk 0:02:46.5]} 6... e6 {[%clk 0:02:47.8]}
7. Qa4 {[%clk 0:02:45.1]} 7... Nd7 {[%clk 0:02:10.5]} 8. Bxc6 {[%clk 0:02:39.5]}
8... bxc6 {[%clk 0:02:11.4]} 9. Qxc6 {[%clk 0:02:37.3]} 9... Rc8 {[%clk
0:02:03.6]} 10. Qa4 {[%clk 0:02:36.1]} 10... Bxf3 {[%clk 0:01:54.7]} 11. Nxf3
{[%clk 0:02:34.3]} 11... Bd6 {[%clk 0:01:55.2]} 12. O-O {[%clk 0:02:32.3]} 12...
Qc7 {[%clk 0:01:54.5]} 13. Re1 {[%clk 0:02:26.5]} 13... O-O {[%clk 0:01:53]} 14.
h3 {[%clk 0:02:17.7]} 14... e5 {[%clk 0:01:47.6]} 15. dxe5 {[%clk 0:02:11]}
15... Nxe5 {[%clk 0:01:48.5]} 16. Nxe5 {[%clk 0:02:10.6]} 16... Bxe5 {[%clk
0:01:49.4]} 17. Bd2 {[%clk 0:02:04.8]} 17... Rb8 {[%clk 0:01:43.9]} 18. Qc2
{[%clk 0:02:03.5]} 18... Bf6 {[%clk 0:01:31.5]} 19. Rad1 {[%clk 0:01:59.3]}
19... Qb6 {[%clk 0:01:27]} 20. Bc1 {[%clk 0:01:58.5]} 20... Rfd8 {[%clk
0:01:11.4]} 21. Qf5 {[%clk 0:01:55.2]} 21... g6 {[%clk 0:01:07.1]} 22. Qf3
{[%clk 0:01:51.5]} 22... Qe6 {[%clk 0:01:03.7]} 23. Qg4 {[%clk 0:01:41.2]} 23...
Kg7 {[%clk 0:00:56.8]} 24. Qxe6 {[%clk 0:01:35.8]} 24... fxe6 {[%clk 0:00:57.7]}
25. Kf1 {[%clk 0:01:21.6]} 25... Rb7 {[%clk 0:00:56.7]} 26. e4 {[%clk
0:00:52.9]} 26... d4 {[%clk 0:00:55.3]} 27. cxd4 {[%clk 0:00:52.7]} 27... Bxd4
{[%clk 0:00:48]} 28. b3 {[%clk 0:00:50.4]} 28... e5 {[%clk 0:00:42.6]} 29. Bg5
{[%clk 0:00:47.7]} 29... Rc8 {[%clk 0:00:40.5]} 30. Rc1 {[%clk 0:00:47]} 30...
Rb6 {[%clk 0:00:37.1]} 31. Rc2 {[%clk 0:00:43.2]} 31... a5 {[%clk 0:00:31.7]}
32. Rc4 {[%clk 0:00:40.1]} 32... Rf8 {[%clk 0:00:24.2]} 33. f3 {[%clk
0:00:38.6]} 33... Rb4 {[%clk 0:00:19.5]} 34. Rec1 {[%clk 0:00:38]} 34... h6
{[%clk 0:00:18.4]} 35. Bd2 {[%clk 0:00:37]} 35... Rb5 {[%clk 0:00:16.1]} 36. Ra4
{[%clk 0:00:34.1]} 36... Ra8 {[%clk 0:00:14.3]} 37. Ke2 {[%clk 0:00:34]} 37...
g5 {[%clk 0:00:14]} 38. Kd3 {[%clk 0:00:33.8]} 38... Kf6 {[%clk 0:00:14.3]} 39.
Rcc4 {[%clk 0:00:23.2]} 39... Ke6 {[%clk 0:00:13.1]} 40. Ra3 {[%clk 0:00:20.7]}
40... Kd6 {[%clk 0:00:08.2]} 41. Rca4 {[%clk 0:00:19.9]} 41... Bb2 {[%clk
0:00:08.2]} 42. Rxa5 {[%clk 0:00:18]} 42... Raxa5 {[%clk 0:00:03.8]} 43. Rxa5
{[%clk 0:00:17.9]} 43... Rb6 {[%clk 0:00:04.2]} 44. Ra4 {[%clk 0:00:16.6]} 44...
Bd4 {[%clk 0:00:03.9]} 45. Bc3 {[%clk 0:00:15.4]} 45... Rb7 {[%clk 0:00:03.3]}
46. Ra6+ {[%clk 0:00:14.2]} 46... Ke7 {[%clk 0:00:02.9]} 47. Rxh6 {[%clk
0:00:12.3]} 47... Ra7 {[%clk 0:00:02]} 48. Rh7+ {[%clk 0:00:12.2]} 1-0

[Event "*** Titled Tuesday Blitz"]
[Site "Chess.com"]
[Date "2021.03.02"]
[Round "7"]
[White "CzechmVIII"]
[Black "onetowin"]
[Result "1-0"]
[WhiteElo "2242"]
[BlackElo "2136"]
[TimeControl "180+1"]
[EndTime "11:19:17 PST"]
[Termination "CzechmVIII won on time"]

1. e4 {[%clk 0:03:00.9]} 1... c5 {[%clk 0:02:59.2]} 2. Nf3 {[%clk 0:03:00.9]}
2... e6 {[%clk 0:02:59.5]} 3. Nc3 {[%clk 0:03:00.7]} 3... Nc6 {[%clk 0:02:58.8]}
4. d4 {[%clk 0:03:00.1]} 4... cxd4 {[%clk 0:02:59.7]} 5. Nxd4 {[%clk 0:03:00.6]}
5... Qc7 {[%clk 0:02:59.4]} 6. Qd3 {[%clk 0:03:00.2]} 6... a6 {[%clk 0:02:58.3]}
7. Nxc6 {[%clk 0:03:00.1]} 7... bxc6 {[%clk 0:02:57.9]} 8. Qg3 {[%clk
0:03:00.6]} 8... d6 {[%clk 0:02:47.9]} 9. Be2 {[%clk 0:02:51.1]} 9... Nf6 {[%clk
0:02:47.9]} 10. O-O {[%clk 0:02:50.2]} 10... Be7 {[%clk 0:02:35.5]} 11. Qxg7
{[%clk 0:02:38.7]} 11... Rg8 {[%clk 0:02:34.1]} 12. Qh6 {[%clk 0:02:38.8]} 12...
Rg6 {[%clk 0:02:32.8]} 13. Qh3 {[%clk 0:02:27.8]} 13... e5 {[%clk 0:02:10.5]}
14. Qd3 {[%clk 0:02:23.8]} 14... d5 {[%clk 0:02:02.6]} 15. f4 {[%clk 0:01:55.9]}
15... d4 {[%clk 0:01:32.9]} 16. Nd1 {[%clk 0:01:23]} 16... a5 {[%clk 0:01:32.5]}
17. fxe5 {[%clk 0:01:15.7]} 17... Ba6 {[%clk 0:01:31.4]} 18. Qf3 {[%clk
0:01:01]} 18... Qxe5 {[%clk 0:01:15.3]} 19. Bxa6 {[%clk 0:00:55.7]} 19... Rxa6
{[%clk 0:01:11.8]} 20. Nf2 {[%clk 0:00:42.6]} 20... Bd6 {[%clk 0:01:02.8]} 21.
g3 {[%clk 0:00:29.4]} 21... Ra7 {[%clk 0:00:43.9]} 22. Nd3 {[%clk 0:00:28.7]}
22... Qe7 {[%clk 0:00:41]} 23. e5 {[%clk 0:00:24.8]} 23... Bxe5 {[%clk
0:00:35.8]} 24. Nxe5 {[%clk 0:00:24.8]} 24... Qxe5 {[%clk 0:00:32.6]} 25. Bf4
{[%clk 0:00:24]} 25... Qc5 {[%clk 0:00:27]} 26. Rae1+ {[%clk 0:00:23.4]} 26...
Kf8 {[%clk 0:00:26]} 27. Kg2 {[%clk 0:00:15.2]} 27... Kg8 {[%clk 0:00:20.9]} 28.
Be5 {[%clk 0:00:14.9]} 28... Ng4 {[%clk 0:00:18.7]} 29. Bf4 {[%clk 0:00:08.1]}
29... Ne3+ {[%clk 0:00:15.8]} 30. Bxe3 {[%clk 0:00:07.4]} 30... dxe3 {[%clk
0:00:16.7]} 31. Qxe3 {[%clk 0:00:05.2]} 31... Qxc2+ {[%clk 0:00:16.5]} 32. Rf2
{[%clk 0:00:05.5]} 32... Qc4 {[%clk 0:00:14.6]} 33. Qe8+ {[%clk 0:00:05.3]}
33... Kg7 {[%clk 0:00:13.8]} 34. Qe5+ {[%clk 0:00:05.2]} 34... Kg8 {[%clk
0:00:14.1]} 35. Qe8+ {[%clk 0:00:05.4]} 35... Kg7 {[%clk 0:00:14.2]} 36. Qe5+
{[%clk 0:00:05.7]} 36... Kg8 {[%clk 0:00:12.4]} 37. Qb8+ {[%clk 0:00:05.8]}
37... Kg7 {[%clk 0:00:10.6]} 38. Qxa7 {[%clk 0:00:06.1]} 38... Qd5+ {[%clk
0:00:09.3]} 39. Kg1 {[%clk 0:00:05.4]} 39... Rd6 {[%clk 0:00:03.5]} 40. Qe3
{[%clk 0:00:04.6]} 40... Re6 {[%clk 0:00:03.2]} 41. Qc3+ {[%clk 0:00:03.4]}
41... Kg8 {[%clk 0:00:02.6]} 42. Rxe6 {[%clk 0:00:03.7]} 42... Qxe6 {[%clk
0:00:02.4]} 43. Qf3 {[%clk 0:00:03.9]} 43... Qe1+ {[%clk 0:00:02.2]} 44. Kg2
{[%clk 0:00:04.4]} 44... Qe7 {[%clk 0:00:02.7]} 45. Qf6 {[%clk 0:00:04.4]} 45...
Qd7 {[%clk 0:00:03]} 46. Qf3 {[%clk 0:00:04.1]} 46... Kf8 {[%clk 0:00:03.1]} 47.
h3 {[%clk 0:00:04.4]} 47... Kg8 {[%clk 0:00:03.4]} 48. Qe3 {[%clk 0:00:04.8]}
48... Qd5+ {[%clk 0:00:02.6]} 49. Qf3 {[%clk 0:00:04.7]} 49... Qxa2 {[%clk
0:00:02.5]} 50. Qg4+ {[%clk 0:00:04.6]} 50... Kf8 {[%clk 0:00:02]} 51. Qf4
{[%clk 0:00:04.1]} 1-0

[Event "*** Titled Tuesday Blitz"]
[Site "Chess.com"]
[Date "2021.03.02"]
[Round "7"]
[White "ChessQueen"]
[Black "Majesth"]
[Result "1/2-1/2"]
[WhiteElo "2722"]
[BlackElo "2582"]
[TimeControl "180+1"]
[EndTime "11:19:18 PST"]
[Termination "Game drawn - insufficient material"]

1. e4 {[%clk 0:03:00.9]} 1... g6 {[%clk 0:03:00.1]} 2. d4 {[%clk 0:03:00.6]}
2... Bg7 {[%clk 0:03:00.3]} 3. Nc3 {[%clk 0:03:00.2]} 3... d6 {[%clk 0:03:00.6]}
4. h4 {[%clk 0:02:59.5]} 4... h5 {[%clk 0:02:58.7]} 5. Nf3 {[%clk 0:02:56.8]}
5... a6 {[%clk 0:02:57.9]} 6. Bc4 {[%clk 0:02:55.8]} 6... b5 {[%clk 0:02:55.2]}
7. Bb3 {[%clk 0:02:56.2]} 7... e6 {[%clk 0:02:51.8]} 8. Bg5 {[%clk 0:02:55.3]}
8... Ne7 {[%clk 0:02:51.7]} 9. a4 {[%clk 0:02:53.2]} 9... b4 {[%clk 0:02:39]}
10. Ne2 {[%clk 0:02:53.4]} 10... Bb7 {[%clk 0:02:38]} 11. Ng3 {[%clk 0:02:52.7]}
11... Nd7 {[%clk 0:02:31.4]} 12. Qd2 {[%clk 0:02:50.6]} 12... a5 {[%clk
0:02:30.7]} 13. O-O {[%clk 0:02:44.8]} 13... c5 {[%clk 0:02:25.2]} 14. Rfe1
{[%clk 0:02:39.3]} 14... Rc8 {[%clk 0:02:20.2]} 15. c3 {[%clk 0:02:39.2]} 15...
Qb6 {[%clk 0:02:08.1]} 16. cxb4 {[%clk 0:02:10.4]} 16... Qxb4 {[%clk 0:01:58]}
17. Qxb4 {[%clk 0:02:04.6]} 17... cxb4 {[%clk 0:01:58.9]} 18. Bf4 {[%clk
0:01:58.1]} 18... d5 {[%clk 0:01:46.7]} 19. exd5 {[%clk 0:01:47]} 19... Bxd5
{[%clk 0:01:47.6]} 20. Bxd5 {[%clk 0:01:42.3]} 20... Nxd5 {[%clk 0:01:48.5]} 21.
Bd6 {[%clk 0:01:41.9]} 21... Rc6 {[%clk 0:01:37.5]} 22. Bc5 {[%clk 0:01:28.4]}
22... Nxc5 {[%clk 0:01:36.6]} 23. dxc5 {[%clk 0:01:28.8]} 23... Rxc5 {[%clk
0:01:37.5]} 24. Re2 {[%clk 0:01:28]} 24... Ke7 {[%clk 0:01:24.6]} 25. Rd1 {[%clk
0:01:25.5]} 25... Rd8 {[%clk 0:01:22.5]} 26. Red2 {[%clk 0:01:25.4]} 26... Rdc8
{[%clk 0:01:12.9]} 27. Nd4 {[%clk 0:01:16.1]} 27... Rc1 {[%clk 0:01:03.4]} 28.
Nge2 {[%clk 0:00:54.9]} 28... Rxd1+ {[%clk 0:00:58.9]} 29. Rxd1 {[%clk
0:00:55.8]} 29... Be5 {[%clk 0:00:45.3]} 30. g3 {[%clk 0:00:53.1]} 30... Bf6
{[%clk 0:00:35.6]} 31. Kg2 {[%clk 0:00:52.1]} 31... Nb6 {[%clk 0:00:33.3]} 32.
b3 {[%clk 0:00:50.7]} 32... Nd5 {[%clk 0:00:33.4]} 33. Rd3 {[%clk 0:00:44.4]}
33... Nc3 {[%clk 0:00:23.6]} 34. Nxc3 {[%clk 0:00:44.2]} 34... Rxc3 {[%clk
0:00:19.9]} 35. Rxc3 {[%clk 0:00:43.8]} 35... bxc3 {[%clk 0:00:20.8]} 36. Nc2
{[%clk 0:00:44.5]} 36... Kd6 {[%clk 0:00:19.5]} 37. Kf3 {[%clk 0:00:45.2]} 37...
Kc5 {[%clk 0:00:18.6]} 38. Ke3 {[%clk 0:00:45.2]} 38... g5 {[%clk 0:00:15]} 39.
hxg5 {[%clk 0:00:45.2]} 39... Bxg5+ {[%clk 0:00:15.9]} 40. Kd3 {[%clk
0:00:45.9]} 40... Bf6 {[%clk 0:00:16.1]} 41. Ke4 {[%clk 0:00:42.5]} 41... h4
{[%clk 0:00:15]} 42. gxh4 {[%clk 0:00:41.3]} 42... Bxh4 {[%clk 0:00:15.9]} 43.
f3 {[%clk 0:00:40.9]} 43... Bf6 {[%clk 0:00:15.1]} 44. Kd3 {[%clk 0:00:41]}
44... Bg7 {[%clk 0:00:14.6]} 45. Ne3 {[%clk 0:00:40.3]} 45... Kb4 {[%clk
0:00:13.6]} 46. Kc2 {[%clk 0:00:41]} 46... Bd4 {[%clk 0:00:11.5]} 47. Nc4 {[%clk
0:00:40.9]} 47... e5 {[%clk 0:00:08.9]} 48. Nd6 {[%clk 0:00:40.8]} 48... f6
{[%clk 0:00:08.2]} 49. Nf5 {[%clk 0:00:40.1]} 49... Kc5 {[%clk 0:00:07.4]} 50.
Kd3 {[%clk 0:00:39]} 50... Kd5 {[%clk 0:00:07.7]} 51. Ng3 {[%clk 0:00:37.3]}
51... Ke6 {[%clk 0:00:06.6]} 52. Ne4 {[%clk 0:00:37.1]} 52... f5 {[%clk
0:00:06.9]} 53. Nxc3 {[%clk 0:00:37]} 53... Bxc3 {[%clk 0:00:07]} 54. Kxc3
{[%clk 0:00:37.9]} 54... Kd5 {[%clk 0:00:07.3]} 55. b4 {[%clk 0:00:38.1]} 55...
axb4+ {[%clk 0:00:06.2]} 56. Kxb4 {[%clk 0:00:38.7]} 56... e4 {[%clk 0:00:05.4]}
57. fxe4+ {[%clk 0:00:38.3]} 57... fxe4 {[%clk 0:00:03.4]} 58. a5 {[%clk
0:00:37.8]} 58... Kc6 {[%clk 0:00:02.7]} 59. Kc4 {[%clk 0:00:37.5]} 59... e3
{[%clk 0:00:03.6]} 60. Kd3 {[%clk 0:00:37.8]} 60... Kb5 {[%clk 0:00:03.7]} 61.
Kxe3 {[%clk 0:00:38.1]} 61... Kxa5 {[%clk 0:00:03.8]} 1/2-1/2